fUSD/lending_fUSD_20240822
["ID","MTS","AMOUNT","RATE_DAILY","PERIOD"]
[335597598,1724352649150,-500.0,0.00010999,2]
[335597599,1724352649159,-500.0,0.00010999,2]
[335597600,1724352649168,-500.0,0.00010999,2]
[335597601,1724352649181,-500.0,0.00010999,2]
[335597602,1724352649191,-500.0,0.00010999,2]
[335597603,1724352649200,-560.13,0.00010999,2]
[335597604,1724352649209,-500.0,0.00010999,2]
[335597605,1724352649219,-500.0,0.00010999,2]
[335597606,1724352649228,-500.0,0.00010999,2]
[335597607,1724352649237,-500.0,0.00010999,2]
[335597608,1724352649257,-500.0,0.00010999,2]
[335597609,1724352649267,-500.0,0.00010999,2]
[335597610,1724352649276,-500.0,0.00010999,2]
[335597611,1724352649285,-500.0,0.00010999,2]
[335597612,1724352649294,-500.0,0.00010999,2]
[335597613,1724352649304,-500.0,0.00010999,2]
[335597614,1724352649313,-500.0,0.00010999,2]
[335597615,1724352649322,-500.0,0.00010999,2]
[335597616,1724352649332,-500.0,0.00010999,2]
[335597617,1724352649341,-500.0,0.00010999,2]
[335597618,1724352649351,-500.0,0.00010999,2]
[335597619,1724352649360,-288.15295764,0.00010999,2]
[335597620,1724352649369,-500.0,0.00010999,2]
[335597621,1724352649379,-500.0,0.00010999,2]
[335597622,1724352649388,-500.0,0.00010999,2]
[335597623,1724352649397,-500.0,0.00010999,2]
[335597624,1724352649407,-500.0,0.00010999,2]
[335597625,1724352649416,-500.0,0.00010999,2]
[335597626,1724352649426,-500.0,0.00010999,2]
[335597627,1724352649435,-500.0,0.00010999,2]
[335597628,1724352649445,-500.0,0.00010999,2]
[335597629,1724352649454,-500.0,0.00010999,2]
[335597630,1724352649464,-500.0,0.00010999,2]
[335597631,1724352649473,-457.95293621,0.00010999,2]
[335597632,1724352649483,-500.0,0.00010999,2]
[335597633,1724352649494,-500.0,0.00010999,2]
[335597634,1724352649503,-500.0,0.00010999,2]
[335597635,1724352649513,-500.0,0.00010999,2]
[335597636,1724352649522,-500.0,0.00010999,2]
[335597637,1724352649531,-500.0,0.00010999,2]
[335597638,1724352649540,-500.0,0.00010999,2]
[335597639,1724352649549,-500.0,0.00010999,2]
[335597640,1724352649558,-500.0,0.00010999,2]
[335597641,1724352649567,-520.8,0.00010999,2]
[335597642,1724352649576,-500.0,0.00010999,2]
[335597643,1724352649585,-270.67138022,0.00010999,2]
[335597644,1724352649594,-500.0,0.00010999,2]
[335597645,1724352649604,-500.0,0.00010999,2]
[335597646,1724352649613,-500.0,0.00010999,2]
[335597647,1724352649623,-500.0,0.00010999,2]
[335597648,1724352649632,-500.0,0.00010999,2]
[335597649,1724352649641,-500.0,0.00010999,2]
[335597650,1724352649650,-500.0,0.00010999,2]
[335597651,1724352649659,-500.0,0.00010999,2]
[335597652,1724352649668,-500.0,0.00010999,2]
[335597653,1724352649677,-159.6639142,0.00010999,2]
[335597688,1724352731664,194.92,8.357e-05,2]
[335597689,1724352840761,156.87623163,0.00010097,2]
[335597691,1724352961360,250.0,0.00010037,2]
[335597692,1724352979125,699.41177,0.0001,2]
[335597693,1724353023092,23506.73,0.0001003,2]
[335597694,1724353187476,200.0,9.979e-05,2]
[335597695,1724353191480,185.17,8.219e-05,2]
[335597696,1724353355424,534.63,9.957e-05,2]
[335597697,1724353386393,604.6,9.945e-05,2]
[335597698,1724353552105,15483.10746637,0.00010097,2]
[335597699,1724353599901,413854.31542804,0.0001,2]
[335597700,1724353599928,50891.37058866,0.0001,2]
[335597702,1724353659417,175.91,8.219e-05,2]
[335597703,1724353678769,1050.0,0.0001,2]
[335597718,1724353796482,3875.44196721,0.00010009,2]
[335597719,1724353820168,155.68,9.923e-05,2]
[335597732,1724353831962,-275.0,0.00010026,2]
[335597734,1724353831973,-739.69628748,0.00010026,2]
[335597735,1724353832023,-593.55351269,0.00010026,2]
[335597736,1724353832036,-2330.38621056,0.00010026,2]
[335597737,1724353832046,-300.0,0.00010096,2]
[335597738,1724353832056,-1298.23330788,0.00010097,2]
[335597739,1724353832066,-465.37,0.00010117,2]
[335597740,1724353832076,-171.79,0.00010193,2]
[335597741,1724353832085,-215.24316292,0.00010284,2]
[335597742,1724353832097,-91.34683708,0.00010284,2]
[335597743,1724353832106,-380.32741541,0.00010471,2]
[335597744,1724353832116,-137.39944626,0.00010471,2]
[335597745,1724353832135,-17.60055374,0.00010471,2]
[335597746,1724353832145,-155.0,0.00010471,2]
[335597747,1724353832156,-175.91,0.00010472,2]
[335597748,1724353832165,-185.4098465,0.000107,2]
[335597749,1724353832181,-819.5901535,0.000107,2]
[335597750,1724353832191,-150.0,0.000107,2]
[335597751,1724353832201,-150.0,0.00010799,2]
[335597752,1724353832211,-3294.8956,0.000108,2]
[335597753,1724353832220,-506.6185,0.000108,2]
[335597754,1724353832231,-225.0512,0.000108,2]
[335597755,1724353832240,-1338.8536,0.000108,2]
[335597756,1724353832250,-623.43,0.000108,2]
[335597757,1724353832259,-939.96,0.000108,2]
[335597758,1724353832269,-455.63,0.000108,2]
[335597759,1724353832278,-1000.0,0.000108,2]
[335597760,1724353832287,-150.0,0.000108,2]
[335597761,1724353832297,-150.0,0.000108,2]
[335597762,1724353832307,-426.83,0.000108,2]
[335597763,1724353832316,-531.53,0.000108,2]
[335597764,1724353832325,-150.0,0.000108,2]
[335597766,1724353832334,-150.0,0.000108,2]
[335597768,1724353832345,-426.83,0.000108,2]
[335597770,1724353832354,-531.53,0.000108,2]
[335597772,1724353832363,-150.0,0.000108,2]
[335597774,1724353832373,-426.83,0.000108,2]
[335597777,1724353832383,-424.73,0.000108,2]
[335597780,1724353832393,-212.7824281,0.00010817,2]
[335597782,1724353832403,-274.95998021,0.00010852,2]
[335597785,1724353832413,-438.08,0.00010866,2]
[335597788,1724353832423,-1201.76,0.00010866,2]
[335597791,1724353832432,-205.19453,0.0001089,2]
[335597794,1724353832441,-2022.4053,0.00010892,2]
[335597795,1724353832451,-7394.3626,0.00010892,2]
[335597797,1724353832461,-500.0,0.00010899,2]
[335597799,1724353832470,-500.0,0.00010899,2]
[335597801,1724353832479,-20000.0,0.00010899,2]
[335597802,1724353832489,-500.0,0.00010899,2]
[335597804,1724353832498,-500.0,0.00010899,2]
[335597806,1724353832508,-502.72256008,0.00010899,2]
[335597808,1724353832517,-500.0,0.00010899,2]
[335597810,1724353832527,-500.0,0.00010899,2]
[335597812,1724353832536,-500.0,0.00010899,2]
[335597813,1724353832546,-500.0,0.00010899,2]
[335597815,1724353832558,-500.0,0.00010899,2]
[335597816,1724353832567,-500.0,0.00010899,2]
[335597817,1724353832577,-500.0,0.00010899,2]
[335597818,1724353832586,-150.0,0.00010899,2]
[335597819,1724353832596,-500.0,0.00010899,2]
[335597820,1724353832605,-500.0,0.00010899,2]
[335597821,1724353832616,-500.0,0.00010899,2]
[335597822,1724353832625,-500.0,0.00010899,2]
[335597823,1724353832635,-500.0,0.00010899,2]
[335597824,1724353832645,-500.0,0.00010899,2]
[335597825,1724353832654,-500.0,0.00010899,2]
[335597826,1724353832663,-500.0,0.00010899,2]
[335597827,1724353832673,-533.6032,0.000109,2]
[335597828,1724353832682,-16480.4317,0.000109,2]
[335597829,1724353832691,-193657.48636909,0.000109,2]
[335597830,1724353832703,-966.43463374,0.000109,2]
[335597831,1724353832713,-463.61871879,0.000109,2]
[335597832,1724353832725,-2595.45439401,0.000109,2]
[335597833,1724353832743,-544.0998858,0.000109,2]
[335597834,1724353832755,-315.04,0.000109,2]
[335597835,1724353832786,-588.10718822,0.000109,2]
[335597838,1724353838017,-620.79838578,0.000109,2]
[335597839,1724353838203,-36198.17722457,0.000109,2]
[335597840,1724353838213,-1062.05,0.000109,2]
[335597841,1724353838222,-454.46,0.000109,2]
[335597842,1724353838231,-1670.6,0.000109,2]
[335597843,1724353838240,-421.47,0.000109,2]
[335597844,1724353838249,-421.47,0.000109,2]
[335597845,1724353838258,-157.10906012,0.000109,2]
[335597846,1724353838267,-150.59,0.000109,2]
[335597847,1724353838276,-1004.0,0.000109,2]
[335597848,1724353838285,-426.83,0.000109,2]
[335597849,1724353838294,-150.0,0.000109,2]
[335597850,1724353838304,-150.0,0.000109,2]
[335597851,1724353838313,-531.53,0.000109,2]
[335597852,1724353838323,-175.10094526,0.000109,2]
[335597853,1724353838333,-215.26709696,0.000109,2]
[335597854,1724353838343,-531.53,0.00010904,2]
[335597855,1724353838353,-531.53,0.00010904,2]
[335597856,1724353838363,-531.53,0.00010904,2]
[335597858,1724353838373,-531.53,0.00010904,2]
[335597860,1724353838382,-531.53,0.00010904,2]
[335597861,1724353838392,-531.53,0.00010904,2]
[335597862,1724353838404,-150.0,0.0001092,2]
[335597863,1724353838414,-150.0,0.00010953,2]
[335597865,1724353838423,-192.77,0.00010959,2]
[335597866,1724353838432,-153.97,0.00010959,2]
[335597868,1724353838441,-2000.0,0.00010959,2]
[335597870,1724353838450,-250.0,0.00010959,2]
[335597872,1724353838460,-200.03924347,0.00010973,2]
[335597874,1724353838470,-155.925626,0.00010973,2]
[335597876,1724353838479,-500.0,0.00010973,2]
[335597878,1724353838488,-500.0,0.00010973,2]
[335597880,1724353838497,-204.78795136,0.00010973,2]
[335597882,1724353838505,-622.4364145,0.00010992,2]
[335597883,1724353838514,-3895.9349189,0.00010992,2]
[335597884,1724353838524,-8660.4488177,0.00010992,2]
[335597885,1724353838533,-202.3441469,0.00010992,2]
[335597886,1724353838542,-213.22753938,0.00010997,2]
[335597887,1724353838551,-500.0,0.00010997,2]
[335597888,1724353838564,-220.95108025,0.00010997,2]
[335597889,1724353838574,-581.87870327,0.00010997,2]
[335597890,1724353838583,-500.0,0.00010997,2]
[335597891,1724353838592,-500.0,0.00010997,2]
[335597892,1724353838602,-500.0,0.00010997,2]
[335597893,1724353838611,-500.0,0.00010997,2]
[335597895,1724353838621,-499.99999999,0.00010997,2]
[335597896,1724353838630,-213.22753938,0.00010997,2]
[335597897,1724353838640,-533.929,0.00010997,2]
[335597898,1724353838652,-157.093,0.00010997,2]
[335597899,1724353838662,-194.21947021,0.00010998,2]
[335597900,1724353838671,-500.0,0.00010998,2]
[335597901,1724353838680,-500.0,0.00010998,2]
[335597902,1724353838689,-500.0,0.00010998,2]
[335597903,1724353838698,-500.0,0.00010998,2]
[335597904,1724353838707,-457.38,0.00010998,2]
[335597905,1724353838716,-500.0,0.00010998,2]
[335597906,1724353838726,-500.0,0.00010998,2]
[335597907,1724353838735,-500.0,0.00010998,2]
[335597908,1724353838744,-500.0,0.00010998,2]
[335597909,1724353838753,-376.42887146,0.00010998,2]
[335597910,1724353838762,-469.00055721,0.00010998,2]
[335597911,1724353838771,-500.0,0.00010998,2]
[335597912,1724353838780,-500.0,0.00010998,2]
[335597913,1724353838789,-500.0,0.00010998,2]
[335597914,1724353838798,-500.0,0.00010998,2]
[335597915,1724353838807,-500.0,0.00010998,2]
[335597916,1724353838815,-500.0,0.00010998,2]
[335597917,1724353838825,-500.0,0.00010998,2]
[335597918,1724353838834,-500.0,0.00010998,2]
[335597919,1724353838843,-481.09979104,0.00010998,2]
[335597920,1724353838852,-500.0,0.00010998,2]
[335597921,1724353838861,-500.0,0.00010998,2]
[335597922,1724353838871,-500.0,0.00010998,2]
[335597923,1724353838880,-500.0,0.00010998,2]
[335597924,1724353838889,-500.0,0.00010998,2]
[335597925,1724353838900,-504.57,0.00010998,2]
[335597926,1724353838909,-504.57,0.00010998,2]
[335597927,1724353838918,-500.0,0.00010998,2]
[335597928,1724353838928,-500.0,0.00010998,2]
[335597929,1724353838937,-500.0,0.00010998,2]
[335597930,1724353838946,-500.0,0.00010998,2]
[335597931,1724353838955,-500.0,0.00010998,2]
[335597932,1724353838964,-500.0,0.00010998,2]
[335597933,1724353838973,-500.0,0.00010998,2]
[335597934,1724353838982,-500.0,0.00010998,2]
[335597935,1724353838991,-500.0,0.00010998,2]
[335597936,1724353839001,-500.0,0.00010998,2]
[335597937,1724353839010,-500.0,0.00010998,2]
[335597938,1724353839019,-500.0,0.00010998,2]
[335597939,1724353839028,-500.0,0.00010998,2]
[335597940,1724353839037,-502.22854357,0.00010998,2]
[335597941,1724353839046,-500.0,0.00010998,2]
[335597942,1724353839056,-500.0,0.00010998,2]
[335597943,1724353839066,-500.0,0.00010998,2]
[335597944,1724353839075,-500.0,0.00010998,2]
[335597945,1724353839084,-500.0,0.00010998,2]
[335597946,1724353839093,-500.0,0.00010998,2]
[335597947,1724353839102,-500.0,0.00010998,2]
[335597948,1724353839111,-500.0,0.00010998,2]
[335597949,1724353839120,-500.0,0.00010998,2]
[335597950,1724353839130,-500.0,0.00010998,2]
[335597951,1724353839139,-500.0,0.00010998,2]
[335597952,1724353839148,-500.0,0.00010998,2]
[335597953,1724353839157,-500.0,0.00010998,2]
[335597954,1724353839166,-500.0,0.00010998,2]
[335597955,1724353839175,-500.0,0.00010998,2]
[335597956,1724353839184,-500.0,0.00010998,2]
[335597957,1724353839195,-500.0,0.00010998,2]
[335597958,1724353839207,-500.0,0.00010998,2]
[335597959,1724353839218,-500.0,0.00010998,2]
[335597960,1724353839228,-500.0,0.00010998,2]
[335597961,1724353839237,-500.0,0.00010998,2]
[335597962,1724353839247,-500.0,0.00010998,2]
[335597963,1724353839255,-500.0,0.00010998,2]
[335597964,1724353839265,-511.97285481,0.00010998,2]
[335597965,1724353839273,-500.0,0.00010998,2]
[335597966,1724353839282,-500.0,0.00010998,2]
[335597967,1724353839291,-500.0,0.00010998,2]
[335597968,1724353839300,-500.0,0.00010998,2]
[335597969,1724353839310,-500.0,0.00010998,2]
[335597970,1724353839319,-500.0,0.00010998,2]
[335597971,1724353839328,-500.0,0.00010998,2]
[335597972,1724353839337,-500.0,0.00010998,2]
[335597973,1724353839346,-500.0,0.00010998,2]
[335597974,1724353839355,-500.0,0.00010998,2]
[335597975,1724353839364,-560.04447754,0.00010998,2]
[335597976,1724353839374,-151.0,0.00010998,2]
[335597977,1724353839383,-151.0,0.00010998,2]
[335597978,1724353839393,-151.0,0.00010998,2]
[335597979,1724353839407,-151.0,0.00010998,2]
[335597980,1724353839416,-151.0,0.00010998,2]
[335597981,1724353839425,-151.0,0.00010998,2]
[335597982,1724353839434,-151.0,0.00010998,2]
[335597983,1724353839443,-151.0,0.00010998,2]
[335597984,1724353839452,-205.51737339,0.00010998,2]
[335597985,1724353839461,-340.3360858,0.00010999,2]
[335597986,1724353839470,-500.0,0.00010999,2]
[335597987,1724353839479,-921.26,0.00010999,2]
[335597988,1724353839488,-921.26,0.00010999,2]
[335597989,1724353839497,-921.26,0.00010999,2]
[335597990,1724353839506,-921.26,0.00010999,2]
[335597991,1724353839516,-921.26,0.00010999,2]
[335597992,1724353839526,-921.26,0.00010999,2]
[335597993,1724353839536,-921.26,0.00010999,2]
[335597994,1724353839545,-921.31492398,0.00010999,2]
[335597995,1724353839555,-500.0,0.00010999,2]
[335597996,1724353839565,-500.0,0.00010999,2]
[335597997,1724353839574,-500.0,0.00010999,2]
[335597998,1724353839583,-500.0,0.00010999,2]
[335597999,1724353839592,-500.0,0.00010999,2]
[335598000,1724353839601,-500.0,0.00010999,2]
[335598001,1724353839611,-500.0,0.00010999,2]
[335598002,1724353839621,-500.0,0.00010999,2]
[335598003,1724353839631,-500.0,0.00010999,2]
[335598004,1724353839643,-537.27,0.00010999,2]
[335598005,1724353839653,-500.0,0.00010999,2]
[335598006,1724353839662,-500.0,0.00010999,2]
[335598007,1724353839671,-500.0,0.00010999,2]
[335598008,1724353839680,-500.0,0.00010999,2]
[335598009,1724353839690,-541.25443818,0.00010999,2]
[335598010,1724353839699,-440.84975977,0.00010999,2]
[335598011,1724353839709,-500.0,0.00010999,2]
[335598012,1724353839718,-500.0,0.00010999,2]
[335598013,1724353839728,-500.0,0.00010999,2]
[335598014,1724353839737,-500.0,0.00010999,2]
[335598015,1724353839746,-500.0,0.00010999,2]
[335598016,1724353839756,-500.0,0.00010999,2]
[335598017,1724353839765,-500.0,0.00010999,2]
[335598018,1724353839774,-500.0,0.00010999,2]
[335598019,1724353839783,-500.0,0.00010999,2]
[335598020,1724353839792,-600.96,0.00010999,2]
[335598021,1724353839802,-500.0,0.00010999,2]
[335598022,1724353839812,-500.0,0.00010999,2]
[335598023,1724353839822,-500.0,0.00010999,2]
[335598024,1724353839832,-500.0,0.00010999,2]
[335598025,1724353839842,-500.0,0.00010999,2]
[335598026,1724353839851,-500.0,0.00010999,2]
[335598027,1724353839861,-500.0,0.00010999,2]
[335598028,1724353839871,-500.0,0.00010999,2]
[335598029,1724353839881,-500.0,0.00010999,2]
[335598030,1724353839890,-500.0,0.00010999,2]
[335598031,1724353839900,-500.0,0.00010999,2]
[335598032,1724353839909,-500.0,0.00010999,2]
[335598033,1724353839919,-500.0,0.00010999,2]
[335598034,1724353839928,-500.0,0.00010999,2]
[335598035,1724353839938,-500.0,0.00010999,2]
[335598036,1724353839947,-500.0,0.00010999,2]
[335598037,1724353839956,-500.0,0.00010999,2]
[335598038,1724353839966,-580.88,0.00010999,2]
[335598039,1724353839975,-500.0,0.00010999,2]
[335598040,1724353839985,-500.0,0.00010999,2]
[335598041,1724353839994,-138.07550587,0.00010999,2]
[335598042,1724353840010,-361.92449413,0.00010999,2]
[335598043,1724353840020,-287.10050587,0.00010999,2]
[335598044,1724353840031,-212.89949413,0.00010999,2]
[335598045,1724353840040,-426.75729672,0.00010999,2]
[335598047,1724353840109,-73.24270328,0.00010999,2]
[335598048,1724353840118,-500.0,0.00010999,2]
[335598049,1724353840128,-154.16213311,0.00010999,2]
[335598050,1724353840139,-345.83786689,0.00010999,2]
[335598051,1724353840149,-472.02917082,0.00010999,2]
[335598052,1724353840173,-27.97082918,0.00010999,2]
[335598053,1724353840183,-1000.0,0.00010999,2]
[335598054,1724353840193,-1000.0,0.00010999,2]
[335598055,1724353840203,-1000.0,0.00010999,2]
[335598056,1724353840212,-1000.0,0.00010999,2]
[335598057,1724353840222,-1000.0,0.00010999,2]
[335598058,1724353840232,-500.0,0.00010999,2]
[335598059,1724353840241,-500.0,0.00010999,2]
[335598060,1724353840251,-500.0,0.00010999,2]
[335598061,1724353840261,-363.74,0.00010999,2]
[335598062,1724353840270,-265.15138749,0.00010999,2]
[335598063,1724353840280,-500.0,0.00010999,2]
[335598064,1724353840289,-500.0,0.00010999,2]
[335598065,1724353840299,-500.0,0.00010999,2]
[335598066,1724353840308,-374.20721,0.00010999,2]
[335598067,1724353840317,-500.0,0.00010999,2]
[335598068,1724353840327,-306.34243904,0.00010999,2]
[335598069,1724353840336,-281.67,0.00010999,2]
[335598070,1724353840345,-380.98,0.00010999,2]
[335598071,1724353840355,-500.0,0.00010999,2]
[335598072,1724353840366,-500.0,0.00010999,2]
[335598073,1724353840376,-561.8,0.00010999,2]
[335598074,1724353840387,-500.0,0.00010999,2]
[335598075,1724353840397,-500.0,0.00010999,2]
[335598076,1724353840413,-500.0,0.00010999,2]
[335598077,1724353840423,-500.0,0.00010999,2]
[335598078,1724353840433,-337.04,0.00010999,2]
[335598079,1724353840444,-500.0,0.00010999,2]
[335598080,1724353840455,-326.24,0.00010999,2]
[335598081,1724353840465,-500.0,0.00010999,2]
[335598082,1724353840476,-500.0,0.00010999,2]
[335598083,1724353840487,-500.0,0.00010999,2]
[335598084,1724353840498,-376.22263565,0.00010999,2]
[335598085,1724353840508,-500.0,0.00010999,2]
[335598086,1724353840518,-500.0,0.00010999,2]
[335598087,1724353840527,-301.46,0.00010999,2]
[335598088,1724353840536,-413.3,0.00010999,2]
[335598089,1724353840546,-500.0,0.00010999,2]
[335598090,1724353840556,-500.0,0.00010999,2]
[335598091,1724353840569,-272.18,0.00010999,2]
[335598092,1724353840580,-500.0,0.00010999,2]
[335598093,1724353840589,-500.0,0.00010999,2]
[335598094,1724353840599,-500.0,0.00010999,2]
[335598095,1724353840608,-500.0,0.00010999,2]
[335598096,1724353840618,-380.98,0.00010999,2]
[335598097,1724353840628,-900.0,0.00010999,2]
[335598098,1724353840638,-281.67,0.00010999,2]
[335598099,1724353840647,-500.0,0.00010999,2]
[335598100,1724353840660,-500.0,0.00010999,2]
[335598101,1724353840669,-500.0,0.00010999,2]
[335598102,1724353840678,-363.74868113,0.00010999,2]
[335598103,1724353840688,-500.0,0.00010999,2]
[335598104,1724353840697,-500.0,0.00010999,2]
[335598105,1724353840707,-500.0,0.00010999,2]
[335598106,1724353840716,-500.0,0.00010999,2]
[335598107,1724353840726,-500.0,0.00010999,2]
[335598108,1724353840735,-500.0,0.00010999,2]
[335598109,1724353840745,-500.0,0.00010999,2]
[335598110,1724353840755,-500.0,0.00010999,2]
[335598111,1724353840764,-297.67,0.00010999,2]
[335598112,1724353840773,-2000.0,0.00010999,2]
[335598113,1724353840782,-500.0,0.00010999,2]
[335598114,1724353840792,-500.0,0.00010999,2]
[335598115,1724353840801,-500.0,0.00010999,2]
[335598116,1724353840810,-200.0,0.00010999,2]
[335598117,1724353840819,-504.57,0.00010999,2]
[335598118,1724353840829,-504.57,0.00010999,2]
[335598119,1724353840838,-504.57,0.00010999,2]
[335598120,1724353840847,-504.57,0.00010999,2]
[335598121,1724353840857,-504.57,0.00010999,2]
[335598122,1724353840867,-504.57,0.00010999,2]
[335598123,1724353840877,-504.57,0.00010999,2]
[335598124,1724353840886,-504.57,0.00010999,2]
[335598125,1724353840895,-504.57,0.00010999,2]
[335598126,1724353840907,-504.57,0.00010999,2]
[335598127,1724353840917,-504.57,0.00010999,2]
[335598128,1724353841083,-504.57,0.00010999,2]
[335598129,1724353841097,-504.57,0.00010999,2]
[335598130,1724353841108,-504.57,0.00010999,2]
[335598131,1724353841117,-504.57,0.00010999,2]
[335598132,1724353841127,-504.57,0.00010999,2]
[335598133,1724353841136,-504.57,0.00010999,2]
[335598134,1724353841145,-504.57,0.00010999,2]
[335598135,1724353841156,-504.57,0.00010999,2]
[335598136,1724353841165,-504.57,0.00010999,2]
[335598137,1724353841175,-504.57,0.00010999,2]
[335598138,1724353841184,-504.74,0.00010999,2]
[335598139,1724353841194,-500.0,0.00010999,2]
[335598140,1724353841203,-500.0,0.00010999,2]
[335598141,1724353841213,-500.0,0.00010999,2]
[335598142,1724353841222,-500.0,0.00010999,2]
[335598143,1724353841232,-500.0,0.00010999,2]
[335598144,1724353841242,-500.0,0.00010999,2]
[335598145,1724353841251,-500.0,0.00010999,2]
[335598146,1724353841260,-500.0,0.00010999,2]
[335598147,1724353841271,-500.0,0.00010999,2]
[335598148,1724353841280,-500.0,0.00010999,2]
[335598149,1724353841290,-500.0,0.00010999,2]
[335598150,1724353841299,-500.0,0.00010999,2]
[335598151,1724353841308,-500.0,0.00010999,2]
[335598152,1724353841318,-400.93,0.00010999,2]
[335598153,1724353841327,-500.0,0.00010999,2]
[335598154,1724353841337,-151.0,0.00010999,2]
[335598155,1724353841347,-500.0,0.00010999,2]
[335598156,1724353841356,-500.0,0.00010999,2]
[335598157,1724353841365,-500.0,0.00010999,2]
[335598158,1724353841375,-500.0,0.00010999,2]
[335598159,1724353841385,-500.0,0.00010999,2]
[335598160,1724353841396,-500.0,0.00010999,2]
[335598161,1724353841406,-500.0,0.00010999,2]
[335598162,1724353841415,-500.0,0.00010999,2]
[335598163,1724353841425,-511.06,0.00010999,2]
[335598164,1724353841434,-151.0,0.00010999,2]
[335598165,1724353841444,-151.0,0.00010999,2]
[335598166,1724353841454,-151.0,0.00010999,2]
[335598167,1724353841463,-207.354154,0.00010999,2]
[335598168,1724353841473,-500.0,0.00010999,2]
[335598169,1724353841482,-500.0,0.00010999,2]
[335598170,1724353841492,-500.0,0.00010999,2]
[335598171,1724353841502,-151.614389,0.00010999,2]
[335598172,1724353841511,-151.0,0.00010999,2]
[335598173,1724353841521,-151.0,0.00010999,2]
[335598174,1724353841530,-352.194868,0.00010999,2]
[335598175,1724353841539,-352.194868,0.00010999,2]
[335598176,1724353841549,-500.0,0.00010999,2]
[335598177,1724353841563,-500.0,0.00010999,2]
[335598178,1724353841573,-500.0,0.00010999,2]
[335598179,1724353841582,-352.194868,0.00010999,2]
[335598180,1724353841592,-352.194868,0.00010999,2]
[335598181,1724353841602,-500.0,0.00010999,2]
[335598182,1724353841612,-500.0,0.00010999,2]
[335598183,1724353841621,-500.0,0.00010999,2]
[335598184,1724353841631,-500.0,0.00010999,2]
[335598185,1724353841641,-500.0,0.00010999,2]
[335598186,1724353841650,-500.0,0.00010999,2]
[335598187,1724353841660,-500.0,0.00010999,2]
[335598188,1724353841669,-500.0,0.00010999,2]
[335598189,1724353841679,-500.0,0.00010999,2]
[335598190,1724353841688,-500.0,0.00010999,2]
[335598191,1724353841697,-500.0,0.00010999,2]
[335598192,1724353841707,-500.0,0.00010999,2]
[335598193,1724353841716,-500.0,0.00010999,2]
[335598194,1724353841726,-500.0,0.00010999,2]
[335598195,1724353841735,-500.0,0.00010999,2]
[335598196,1724353841745,-500.0,0.00010999,2]
[335598197,1724353841754,-500.0,0.00010999,2]
[335598198,1724353841765,-500.0,0.00010999,2]
[335598199,1724353841776,-179.66,0.00010999,2]
[335598200,1724353841785,-500.0,0.00010999,2]
[335598201,1724353841794,-500.0,0.00010999,2]
[335598202,1724353841803,-500.0,0.00010999,2]